[Event "AUT Bundesliga 2022-23"]
[Site "Jenbach"]
[Date "2022.11.03"]
[Round "1.29"]
[White "Halvax, Georg"]
[Black "Mesaros, Florian"]
[Result "1-0"]
[ECO "D38"]
[WhiteElo "2432"]
[BlackElo "2404"]
[Annotator "ChessBase"]
[PlyCount "61"]
[EventDate "2022.11.03"]
[EventType "team-tourn"]
[EventCountry "AUT"]
[SourceTitle "playchess.com"]
[Source "ChessBase"]
[SourceQuality "1"]
[TimeControl "40/5400+30:1800+30"]

1. d4 {[%emt 0:00:04]} Nf6 {[%emt 0:00:33]} 2. c4 {[%emt 0:00:10]} e6 {[%emt 0:00:05]} 3. Nf3 {[%emt 0:00:08]} d5 {[%emt 0:00:14]} 4. Nc3 {[%emt 0:00:09]} Bb4 {[%emt 0:00:19]} 5. cxd5 {[%emt 0:00:09]} exd5 {[%emt 0:00:18]} 6. Bf4 {[%emt 0:00:09]} c5 {[%emt 0:06:35]} 7. g3 {[%emt 0:01:09]} Nc6 {[%emt 0:02:24]} 8. Bg2 {[%emt 0:00:19]} O-O {[%emt 0:08:25]} 9. O-O {[%emt 0:00:25]} Bg4 {[%emt 0:04:06]} 10. dxc5 {[%emt 0:09:10]} Bxc3 {[%emt 0:11:39]} 11. bxc3 {[%emt 0:00:22]} Ne4 {[%emt 0:00:44]} 12. c4 {[%emt 0:05:57]} d4 {[%emt 0:08:07]} 13. h3 {[%emt 0:02:12]} Bh5 {[%emt 0:05:31]} 14. Qb1 {[%emt 0:18:09]} Nxc5 {[%emt 0:03:03]} 15. Qf5 {[%emt 0:02:32]} Bxf3 {[%emt 0:01:23]} 16. Bxf3 {[%emt 0:00:09]} Qe7 {[%emt 0:02:40]} 17. Rfd1 {[%emt 0:05:37]} Rad8 {[%emt 0:01:43]} 18. h4 {[%emt 0:12:55]} d3 {[%emt 0:12:40]} 19. Bg5 {[%emt 0:09:40]} f6 {[%emt 0:01:27]} 20. Be3 {[%emt 0:00:43]} Ne5 {[%emt 0:10:53]} 21. Bd5+ {[%emt 0:03:52]} Kh8 {[%emt 0:01:14]} 22. exd3 {[%emt 0:01:27]} g6 {[%emt 0:02:38]} 23. Bxc5 {[%emt 0:01:48]} Qxc5 {[%emt 0:00:20]} 24. Qf4 {[%emt 0:00:51]} Nc6 {[%emt 0:03:40]} 25. Qc7 {[%emt 0:02:45]} Rfe8 {[%emt 0:06:35]} 26. Qxb7 {[%emt 0:11:39]} Re2 {[%emt 0:00:17]} 27. Rf1 {[%emt 0:00:05]} Ne5 {[%emt 0:01:42]} 28. Rae1 {[%emt 0:01:20]} Rxa2 {[%emt 0:02:56]} 29. d4 {[%emt 0:00:20]} Qxd4 {[%emt 0:00:57]} 30. Qe7 {[%emt 0:00:02]} Rxd5 {[%emt 0:01:42]} 31. Qf8# 1-0

[Event "AUT Bundesliga 2022-23"]
[Site "Jenbach"]
[Date "2022.11.03"]
[Round "1.30"]
[White "Freitag, Manfred"]
[Black "Steiner, Josef"]
[Result "1-0"]
[ECO "B01"]
[WhiteElo "2357"]
[BlackElo "2061"]
[Annotator "ChessBase"]
[PlyCount "71"]
[EventDate "2022.11.03"]
[EventType "team-tourn"]
[EventCountry "AUT"]
[SourceTitle "playchess.com"]
[Source "ChessBase"]
[SourceQuality "1"]
[TimeControl "40/5400+30:1800+30"]

1. e4 {[%emt 0:00:15]} d5 {[%emt 0:00:34]} 2. exd5 {[%emt 0:00:16]} Qxd5 {[%emt 0:00:06]} 3. Nc3 {[%emt 0:00:23]} Qa5 {[%emt 0:00:11]} 4. d4 {[%emt 0:01:00]} c6 {[%emt 0:00:15]} 5. Nf3 {[%emt 0:00:40]} Nf6 {[%emt 0:00:16]} 6. Bc4 {[%emt 0:04:04]} Bg4 {[%emt 0:01:28]} 7. h3 {[%emt 0:00:54]} Bh5 {[%emt 0:04:04]} 8. g4 {[%emt 0:09:14]} Bg6 {[%emt 0:00:42]} 9. Ne5 {[%emt 0:06:48]} Nbd7 {[%emt 0:08:33]} 10. Nxg6 {[%emt 0:10:21]} hxg6 {[%emt 0:00:15]} 11. Bd2 {[%emt 0:00:16]} b5 {[%emt 0:02:47]} 12. Nxb5 {[%emt 0:11:36]} Qb6 {[%emt 0:00:24]} 13. Qf3 {[%emt 0:00:14]} Rc8 {[%emt 0:00:19]} 14. Nc3 {[%emt 0:00:33]} Qxd4 {[%emt 0:00:38]} 15. Bb3 {[%emt 0:01:57]} Ne5 {[%emt 0:03:31]} 16. Qe2 {[%emt 0:01:16]} Nexg4 {[%emt 0:01:40]} 17. O-O-O {[%emt 0:00:29]} Qxf2 {[%emt 0:02:04]} 18. Qa6 {[%emt 0:00:24]} Rc7 {[%emt 0:02:50]} 19. hxg4 {[%emt 0:01:03]} Rxh1 {[%emt 0:00:19]} 20. Rxh1 {[%emt 0:00:01]} Qg2 {[%emt 0:01:57]} 21. Rd1 {[%emt 0:07:25]} Qxg4 {[%emt 0:01:39]} 22. Be3 {[%emt 0:00:51]} Qc8 {[%emt 0:02:08]} 23. Qc4 {[%emt 0:01:50]} e6 24. Ba4 Nd7 {[%emt 0:03:18]} 25. Bg5 {[%emt 0:04:25]} Be7 {[%emt 0:00:35]} 26. Bxe7 {[%emt 0:00:45]} Kxe7 {[%emt 0:00:07]} 27. Qh4+ {[%emt 0:00:42]} Nf6 28. Ne4 e5 29. Nxf6 gxf6 30. Rf1 g5 31. Qh6 Qe6 32. Bb3 Qd6 33. Rd1 Qb4 34. Qh7 Kf8 35. Qh8+ Ke7 36. Qd8# 1-0

[Event "AUT Bundesliga 2022-23"]
[Site "Jenbach"]
[Date "2022.11.03"]
[Round "1.31"]
[White "Saric, Ivan"]
[Black "Vachier-Lagrave, Maxime"]
[Result "1/2-1/2"]
[ECO "C42"]
[WhiteElo "2668"]
[BlackElo "2747"]
[Annotator "ChessBase"]
[PlyCount "81"]
[EventDate "2022.11.03"]
[EventType "team-tourn"]
[EventCountry "AUT"]
[SourceTitle "playchess.com"]
[Source "ChessBase"]
[SourceQuality "1"]
[TimeControl "40/5400+30:1800+30"]

1. e4 {[%emt 0:00:02]} e5 {[%emt 0:00:04]} 2. Nf3 {[%emt 0:00:04]} Nf6 {[%emt 0:00:03]} 3. Nxe5 {[%emt 0:02:24]} d6 {[%emt 0:00:15]} 4. Nf3 {[%emt 0:00:04]} Nxe4 {[%emt 0:00:03]} 5. d4 {[%emt 0:00:09]} d5 {[%emt 0:00:03]} 6. Bd3 {[%emt 0:00:03]} Bd6 {[%emt 0:00:08]} 7. O-O {[%emt 0:00:08]} O-O {[%emt 0:00:04]} 8. c4 {[%emt 0:00:11]} c6 {[%emt 0:00:03]} 9. Qc2 {[%emt 0:06:10]} h6 {[%emt 0:02:04]} 10. Re1 {[%emt 0:10:09]} Be6 {[%emt 0:00:21]} 11. cxd5 {[%emt 0:00:11]} cxd5 {[%emt 0:00:05]} 12. Bxe4 {[%emt 0:00:24]} dxe4 {[%emt 0:00:10]} 13. Qxe4 {[%emt 0:00:05]} Nc6 {[%emt 0:07:14]} 14. Nc3 {[%emt 0:01:32]} Nb4 {[%emt 0:00:14]} 15. a3 {[%emt 0:04:56]} Nd5 {[%emt 0:00:22]} 16. Bd2 {[%emt 0:04:10]} Rc8 {[%emt 0:10:25]} 17. Ne5 {[%emt 0:09:28]} Bb8 {[%emt 0:25:09]} 18. Qf3 {[%emt 0:14:54]} Nxc3 {[%emt 0:07:55]} 19. bxc3 {[%emt 0:04:29]} Qd5 {[%emt 0:00:30]} 20. Qxd5 {[%emt 0:08:21]} Bxd5 {[%emt 0:00:30]} 21. Nd7 {[%emt 0:00:21]} Rfd8 {[%emt 0:00:12]} 22. Nxb8 {[%emt 0:00:09]} Rxb8 {[%emt 0:00:03]} 23. a4 {[%emt 0:02:48]} Rd7 {[%emt 0:01:24]} 24. a5 {[%emt 0:00:21]} Rc8 {[%emt 0:00:46]} 25. f3 {[%emt 0:00:53]} f6 {[%emt 0:00:18]} 26. Re3 {[%emt 0:02:30]} Kf7 {[%emt 0:00:17]} 27. Bc1 {[%emt 0:02:49]} Rdc7 {[%emt 0:11:12]} 28. Bb2 {[%emt 0:00:32]} Re8 {[%emt 0:00:28]} 29. Rxe8 {[%emt 0:00:48]} Kxe8 {[%emt 0:00:11]} 30. Kf2 {[%emt 0:04:21]} Rc6 {[%emt 0:02:33]} 31. h4 {[%emt 0:04:30]} h5 {[%emt 0:04:13]} 32. Ke3 {[%emt 0:01:48]} Kf7 {[%emt 0:05:32]} 33. Kd2 {[%emt 0:01:05]} Bc4 {[%emt 0:00:27]} 34. Ba3 {[%emt 0:02:07]} Re6 {[%emt 0:00:55]} 35. Re1 {[%emt 0:01:11]} Rxe1 {[%emt 0:00:08]} 36. Kxe1 {[%emt 0:00:04]} b6 {[%emt 0:00:12]} 37. axb6 {[%emt 0:01:27]} axb6 {[%emt 0:00:04]} 38. Kf2 {[%emt 0:00:05]} Ke6 {[%emt 0:00:06]} 39. g4 {[%emt 0:00:11]} g6 {[%emt 0:00:04]} 40. Ke3 {[%emt 0:00:00]} b5 {[%emt 0:00:00]} 41. Kf4 1/2-1/2

[Event "AUT Bundesliga 2022-23"]
[Site "Jenbach"]
[Date "2022.11.03"]
[Round "1.32"]
[White "Maghsoodloo, Parham"]
[Black "Brkic, Ante"]
[Result "1/2-1/2"]
[ECO "E10"]
[WhiteElo "2721"]
[BlackElo "2602"]
[Annotator "ChessBase"]
[PlyCount "160"]
[EventDate "2022.11.03"]
[EventType "team-tourn"]
[EventCountry "AUT"]
[SourceTitle "playchess.com"]
[Source "ChessBase"]
[SourceQuality "1"]
[TimeControl "40/5400+30:1800+30"]

1. d4 {[%emt 0:00:03]} Nf6 {[%emt 0:00:08]} 2. c4 {[%emt 0:00:09]} e6 {[%emt 0:00:06]} 3. Nf3 {[%emt 0:00:05]} d5 {[%emt 0:00:05]} 4. g3 {[%emt 0:00:04]} Bb4+ {[%emt 0:00:06]} 5. Bd2 {[%emt 0:00:05]} Be7 {[%emt 0:00:06]} 6. Bg2 {[%emt 0:00:04]} O-O {[%emt 0:00:06]} 7. O-O {[%emt 0:00:05]} Nbd7 {[%emt 0:00:07]} 8. b3 {[%emt 0:00:04]} b6 {[%emt 0:06:00]} 9. cxd5 {[%emt 0:02:28]} exd5 {[%emt 0:00:08]} 10. Qc2 {[%emt 0:00:25]} Bb7 {[%emt 0:02:04]} 11. b4 {[%emt 0:00:57]} Re8 {[%emt 0:09:05]} 12. Qb3 {[%emt 0:00:17]} Ne4 {[%emt 0:15:54]} 13. Nc3 {[%emt 0:10:32]} Nxc3 {[%emt 0:02:19]} 14. Bxc3 {[%emt 0:00:14]} Bd6 {[%emt 0:00:18]} 15. e3 {[%emt 0:01:29]} Qe7 {[%emt 0:11:34]} 16. a4 {[%emt 0:04:42]} Nf6 {[%emt 0:06:07]} 17. Rfc1 {[%emt 0:01:31]} Ne4 {[%emt 0:01:03]} 18. Be1 {[%emt 0:01:46]} a6 {[%emt 0:06:51]} 19. b5 {[%emt 0:03:04]} a5 {[%emt 0:02:40]} 20. Bc3 {[%emt 0:09:53]} f6 {[%emt 0:15:40]} 21. Bb2 {[%emt 0:01:16]} Qf7 {[%emt 0:00:57]} 22. Ba3 {[%emt 0:01:16]} Bxa3 {[%emt 0:01:21]} 23. Rxa3 {[%emt 0:00:16]} Re7 {[%emt 0:03:59]} 24. Ra2 {[%emt 0:00:34]} g5 {[%emt 0:00:27]} 25. Rac2 {[%emt 0:00:54]} Rae8 {[%emt 0:02:07]} 26. Ne1 {[%emt 0:04:13]} h5 {[%emt 0:03:16]} 27. Bxe4 {[%emt 0:09:16]} dxe4 {[%emt 0:00:11]} 28. Qxf7+ {[%emt 0:00:05]} Kxf7 {[%emt 0:00:40]} 29. Rxc7 {[%emt 0:00:06]} Rxc7 {[%emt 0:01:18]} 30. Rxc7+ {[%emt 0:00:06]} Re7 {[%emt 0:00:00]} 31. Rc3 {[%emt 0:00:15]} Ke6 {[%emt 0:02:16]} 32. Kf1 {[%emt 0:01:52]} Rh7 {[%emt 0:02:21]} 33. Nc2 {[%emt 0:02:59]} h4 {[%emt 0:03:14]} 34. Na3 hxg3 {[%emt 0:03:51]} 35. hxg3 {[%emt 0:06:39]} Bd5 {[%emt 0:00:30]} 36. Ke2 {[%emt 0:00:07]} g4 37. Rc8 {[%emt 0:02:20]} Kd7 {[%emt 0:01:24]} 38. Rc1 {[%emt 0:02:40]} Ke6 {[%emt 0:00:22]} 39. Nb1 {[%emt 0:00:30]} f5 40. Rc8 {[%emt 0:00:00]} Kd7 {[%emt 0:00:00]} 41. Rf8 {[%emt 0:06:27]} Ke6 {[%emt 0:20:56]} 42. Rb8 {[%emt 0:10:33]} Rh1 43. Rxb6+ Kd7 {[%emt 0:01:46]} 44. Nd2 {[%emt 0:16:48]} Ra1 {[%emt 0:00:06]} 45. Rf6 {[%emt 0:00:03]} Be6 {[%emt 0:00:25]} 46. d5 {[%emt 0:19:59]} Bxd5 {[%emt 0:00:02]} 47. Rxf5 {[%emt 0:00:04]} Ke6 {[%emt 0:00:07]} 48. Rg5 {[%emt 0:01:39]} Rxa4 {[%emt 0:00:12]} 49. Rxg4 {[%emt 0:00:06]} Rb4 50. Rg6+ Kd7 {[%emt 0:04:04]} 51. Kd1 {[%emt 0:02:57]} Rxb5 {[%emt 0:03:54]} 52. Kc2 {[%emt 0:00:06]} a4 {[%emt 0:01:20]} 53. Ra6 {[%emt 0:01:26]} Rc5+ {[%emt 0:00:48]} 54. Kb2 {[%emt 0:00:18]} Bc6 {[%emt 0:00:29]} 55. g4 {[%emt 0:02:18]} Ke7 {[%emt 0:03:39]} 56. Rb6 {[%emt 0:01:18]} Kd7 {[%emt 0:01:11]} 57. Rb4 {[%emt 0:01:16]} Re5 {[%emt 0:00:20]} 58. Ka3 {[%emt 0:04:57]} Kc7 {[%emt 0:00:21]} 59. Rc4 {[%emt 0:00:32]} Kb7 60. Rc1 {[%emt 0:01:38]} Rg5 {[%emt 0:01:23]} 61. Nc4 {[%emt 0:00:19]} Kc7 {[%emt 0:00:18]} 62. Rc3 {[%emt 0:01:16]} Rc5 {[%emt 0:00:21]} 63. Kb4 {[%emt 0:00:01]} Rg5 {[%emt 0:00:54]} 64. Rc2 {[%emt 0:01:40]} Rb5+ {[%emt 0:00:11]} 65. Ka3 {[%emt 0:00:01]} Rg5 {[%emt 0:00:34]} 66. Nb2 {[%emt 0:01:10]} Kd7 {[%emt 0:00:34]} 67. Rc4 {[%emt 0:01:21]} Rxg4 {[%emt 0:00:34]} 68. Nd3 {[%emt 0:00:01]} Rg5 {[%emt 0:00:48]} 69. Nb4 {[%emt 0:00:54]} Bb7 {[%emt 0:00:18]} 70. Kxa4 {[%emt 0:00:02]} Rf5 {[%emt 0:00:21]} 71. Rc2 {[%emt 0:00:06]} Kd6 {[%emt 0:00:13]} 72. Rd2+ {[%emt 0:00:33]} Ke6 {[%emt 0:00:25]} 73. Kb3 {[%emt 0:00:18]} Rd5 {[%emt 0:00:30]} 74. Kb2 {[%emt 0:00:30]} Rc5 {[%emt 0:00:16]} 75. Na2 {[%emt 0:02:03]} Rc7 {[%emt 0:00:20]} 76. Rd8 {[%emt 0:00:39]} Rf7 {[%emt 0:00:05]} 77. Kc3 {[%emt 0:00:00]} Kf5 {[%emt 0:00:30]} 78. Rd2 {[%emt 0:00:25]} Kg4 {[%emt 0:00:44]} 79. Nb4 {[%emt 0:00:38]} Kh3 {[%emt 0:01:04]} 80. Kd4 {[%emt 0:01:33]} Kg2 1/2-1/2

[Event "AUT Bundesliga 2022-23"]
[Site "Jenbach"]
[Date "2022.11.03"]
[Round "1.33"]
[White "Livaic, Leon"]
[Black "Alekseenko, Kirill"]
[Result "1-0"]
[ECO "E23"]
[WhiteElo "2574"]
[BlackElo "2691"]
[Annotator "ChessBase"]
[PlyCount "113"]
[EventDate "2022.11.03"]
[EventType "team-tourn"]
[EventCountry "AUT"]
[SourceTitle "playchess.com"]
[Source "ChessBase"]
[SourceQuality "1"]
[TimeControl "40/5400+30:1800+30"]

1. d4 {[%emt 0:00:05]} Nf6 {[%emt 0:00:10]} 2. c4 {[%emt 0:00:07]} e6 {[%emt 0:00:14]} 3. Nc3 {[%emt 0:00:11]} Bb4 {[%emt 0:00:54]} 4. Qb3 {[%emt 0:00:10]} c5 {[%emt 0:05:02]} 5. dxc5 {[%emt 0:00:19]} Nc6 {[%emt 0:02:19]} 6. Nf3 {[%emt 0:00:38]} Ne4 {[%emt 0:06:56]} 7. Bd2 {[%emt 0:00:08]} Nxd2 {[%emt 0:02:52]} 8. Nxd2 {[%emt 0:00:05]} Bxc5 {[%emt 0:03:13]} 9. g3 {[%emt 0:00:13]} O-O {[%emt 0:05:34]} 10. Bg2 {[%emt 0:00:06]} f5 {[%emt 0:02:11]} 11. O-O {[%emt 0:03:00]} b6 {[%emt 0:02:00]} 12. a3 {[%emt 0:06:51]} Bb7 {[%emt 0:00:58]} 13. e3 {[%emt 0:04:54]} Qc8 {[%emt 0:05:20]} 14. Rac1 {[%emt 0:19:57]} Ne5 {[%emt 0:02:16]} 15. Bxb7 {[%emt 0:00:17]} Qxb7 {[%emt 0:00:06]} 16. Ne2 {[%emt 0:00:48]} Rac8 {[%emt 0:05:55]} 17. Nf4 {[%emt 0:03:45]} Be7 {[%emt 0:01:31]} 18. Nd3 {[%emt 0:01:42]} Nf7 {[%emt 0:03:54]} 19. Qd1 {[%emt 0:02:29]} Rc7 {[%emt 0:03:16]} 20. a4 {[%emt 0:04:32]} Rfc8 {[%emt 0:04:51]} 21. b3 {[%emt 0:00:15]} a6 {[%emt 0:06:26]} 22. Qf3 {[%emt 0:01:45]} Rc6 {[%emt 0:01:41]} 23. Rfd1 {[%emt 0:03:36]} R8c7 {[%emt 0:06:45]} 24. Qg2 {[%emt 0:08:48]} e5 {[%emt 0:10:39]} 25. Nb1 {[%emt 0:11:36]} e4 {[%emt 0:02:19]} 26. Nf4 {[%emt 0:00:04]} Bf8 {[%emt 0:02:42]} 27. Nc3 {[%emt 0:03:26]} Ne5 {[%emt 0:00:58]} 28. h4 {[%emt 0:03:34]} Nf3+ {[%emt 0:02:50]} 29. Kh1 {[%emt 0:01:42]} g5 {[%emt 0:01:03]} 30. Nfd5 {[%emt 0:04:02]} Rc8 {[%emt 0:03:55]} 31. Qh3 {[%emt 0:01:21]} g4 {[%emt 0:00:42]} 32. Qf1 {[%emt 0:00:04]} Rh6 {[%emt 0:00:25]} 33. Ne2 {[%emt 0:05:28]} b5 {[%emt 0:01:23]} 34. axb5 {[%emt 0:00:46]} axb5 {[%emt 0:00:05]} 35. Nd4 {[%emt 0:00:23]} Nxd4 {[%emt 0:01:55]} 36. Rxd4 {[%emt 0:00:36]} Rhc6 {[%emt 0:00:22]} 37. Qd1 {[%emt 0:05:16]} d6 {[%emt 0:02:06]} 38. Nf4 {[%emt 0:01:13]} Qf7 {[%emt 0:00:35]} 39. Qe2 {[%emt 0:01:14]} Bg7 {[%emt 0:01:48]} 40. Rd2 {[%emt 0:00:00]} Be5 {[%emt 0:00:00]} 41. Nd5 {[%emt 0:05:07]} Kg7 {[%emt 0:05:22]} 42. Kg2 {[%emt 0:08:34]} Kh6 {[%emt 0:00:06]} 43. Rdc2 {[%emt 0:06:17]} bxc4 {[%emt 0:01:43]} 44. bxc4 {[%emt 0:00:00]} Rb8 {[%emt 0:00:29]} 45. Qd1 {[%emt 0:02:52]} Rc5 {[%emt 0:06:36]} 46. Rb1 {[%emt 0:00:43]} Rb7 {[%emt 0:01:37]} 47. Rxb7 {[%emt 0:02:20]} Qxb7 {[%emt 0:00:04]} 48. Rc1 {[%emt 0:01:46]} Ra5 {[%emt 0:02:47]} 49. Rb1 {[%emt 0:01:07]} Qc8 {[%emt 0:05:21]} 50. Rb5 {[%emt 0:01:45]} Ra3 {[%emt 0:06:13]} 51. Ne7 {[%emt 0:02:59]} Qe6 {[%emt 0:00:50]} 52. Rb7 {[%emt 0:00:34]} Ra2 {[%emt 0:02:37]} 53. Qd5 {[%emt 0:03:36]} Qxd5 {[%emt 0:00:04]} 54. Nxf5+ {[%emt 0:02:07]} Kh5 {[%emt 0:00:06]} 55. cxd5 {[%emt 0:00:03]} Rd2 {[%emt 0:01:28]} 56. Re7 {[%emt 0:00:46]} Rxd5 {[%emt 0:02:29]} 57. Re6 {[%emt 0:00:25]} 1-0

[Event "AUT Bundesliga 2022-23"]
[Site "Jenbach"]
[Date "2022.11.03"]
[Round "1.34"]
[White "Moussard, Jules"]
[Black "Kuljasevic, Davorin"]
[Result "1-0"]
[ECO "C92"]
[WhiteElo "2686"]
[BlackElo "2560"]
[Annotator "ChessBase"]
[PlyCount "80"]
[EventDate "2022.11.03"]
[EventType "team-tourn"]
[EventCountry "AUT"]
[SourceTitle "playchess.com"]
[Source "ChessBase"]
[SourceQuality "1"]
[TimeControl "40/5400+30:1800+30"]

1. e4 {[%emt 0:00:03]} e5 {[%emt 0:00:10]} 2. Nf3 {[%emt 0:00:06]} Nc6 {[%emt 0:00:08]} 3. Bb5 {[%emt 0:00:07]} a6 {[%emt 0:00:20]} 4. Ba4 {[%emt 0:00:07]} Nf6 {[%emt 0:00:16]} 5. O-O {[%emt 0:00:09]} Be7 {[%emt 0:00:15]} 6. Re1 {[%emt 0:00:06]} b5 {[%emt 0:00:13]} 7. Bb3 {[%emt 0:00:07]} d6 {[%emt 0:00:21]} 8. c3 {[%emt 0:00:07]} O-O {[%emt 0:00:15]} 9. h3 {[%emt 0:00:08]} Re8 {[%emt 0:00:48]} 10. d4 {[%emt 0:00:53]} Bb7 {[%emt 0:00:22]} 11. Nbd2 {[%emt 0:00:34]} Bf8 {[%emt 0:00:18]} 12. a4 {[%emt 0:01:39]} h6 {[%emt 0:07:27]} 13. Bc2 {[%emt 0:01:13]} Nb8 {[%emt 0:02:45]} 14. Bd3 {[%emt 0:03:19]} Nbd7 {[%emt 0:02:15]} 15. Qc2 {[%emt 0:07:45]} Rb8 {[%emt 0:18:06]} 16. b4 {[%emt 0:10:36]} exd4 {[%emt 0:12:44]} 17. cxd4 {[%emt 0:02:42]} c5 {[%emt 0:01:02]} 18. axb5 {[%emt 0:12:58]} axb5 {[%emt 0:00:10]} 19. d5 {[%emt 0:01:05]} cxb4 {[%emt 0:07:34]} 20. Bb2 {[%emt 0:03:38]} Ba8 {[%emt 0:15:29]} 21. Nd4 {[%emt 0:06:16]} Qb6 {[%emt 0:01:37]} 22. Bxb5 {[%emt 0:04:44]} Rec8 {[%emt 0:03:48]} 23. Qb3 {[%emt 0:01:28]} Ne5 {[%emt 0:07:24]} 24. Bf1 {[%emt 0:05:42]} Nfd7 {[%emt 0:10:07]} 25. Qe3 {[%emt 0:03:23]} Bb7 {[%emt 0:06:17]} 26. f4 {[%emt 0:03:55]} Ng6 {[%emt 0:00:05]} 27. Nc4 {[%emt 0:00:16]} Qd8 {[%emt 0:00:39]} 28. Na5 {[%emt 0:00:21]} Qb6 {[%emt 0:00:29]} 29. Nxb7 {[%emt 0:01:38]} Ra8 {[%emt 0:00:06]} 30. Nxd6 {[%emt 0:11:08]} Bxd6 {[%emt 0:00:17]} 31. e5 {[%emt 0:00:18]} Bc5 {[%emt 0:00:18]} 32. Kh1 {[%emt 0:01:00]} Ne7 {[%emt 0:01:21]} 33. Qe4 {[%emt 0:01:13]} Qb7 {[%emt 0:00:31]} 34. Nc6 {[%emt 0:05:50]} Rxa1 {[%emt 0:00:53]} 35. Rxa1 {[%emt 0:00:22]} Ra8 {[%emt 0:00:59]} 36. Rxa8+ {[%emt 0:00:12]} Qxa8 {[%emt 0:00:02]} 37. Bd3 {[%emt 0:00:16]} Nf8 {[%emt 0:01:18]} 38. Qc4 {[%emt 0:01:33]} Nxc6 {[%emt 0:01:30]} 39. Qxc5 {[%emt 0:00:05]} Nd8 {[%emt 0:00:34]} 40. e6 {[%emt 0:00:00]} Nb7 {[%emt 0:00:00]} 1-0

[Event "AUT Bundesliga 2022-23"]
[Site "Jenbach"]
[Date "2022.11.03"]
[Round "1.35"]
[White "Bosiocic, Marin"]
[Black "Naiditsch, Arkadij"]
[Result "1-0"]
[ECO "A06"]
[WhiteElo "2548"]
[BlackElo "2667"]
[Annotator "ChessBase"]
[PlyCount "89"]
[EventDate "2022.11.03"]
[EventType "team-tourn"]
[EventCountry "AUT"]
[SourceTitle "playchess.com"]
[Source "ChessBase"]
[SourceQuality "1"]
[TimeControl "40/5400+30:1800+30"]

1. Nf3 {[%emt 0:00:05]} d5 {[%emt 0:00:31]} 2. g3 {[%emt 0:00:08]} g6 {[%emt 0:02:09]} 3. Bg2 {[%emt 0:00:16]} Bg7 {[%emt 0:00:09]} 4. O-O {[%emt 0:00:10]} e5 {[%emt 0:01:28]} 5. d3 {[%emt 0:00:07]} Ne7 {[%emt 0:01:28]} 6. e4 {[%emt 0:00:10]} d4 {[%emt 0:06:00]} 7. b4 {[%emt 0:01:23]} O-O {[%emt 0:08:01]} 8. Nbd2 {[%emt 0:00:41]} Nd7 {[%emt 0:03:45]} 9. a4 {[%emt 0:05:27]} c5 {[%emt 0:13:30]} 10. b5 {[%emt 0:03:47]} Qc7 {[%emt 0:08:36]} 11. Bb2 {[%emt 0:08:15]} Rd8 {[%emt 0:06:41]} 12. c3 {[%emt 0:05:31]} dxc3 {[%emt 0:04:56]} 13. Bxc3 {[%emt 0:00:11]} Nf8 {[%emt 0:00:19]} 14. Qb1 {[%emt 0:05:10]} f6 {[%emt 0:02:46]} 15. Rc1 {[%emt 0:04:02]} Be6 {[%emt 0:01:47]} 16. d4 {[%emt 0:03:50]} cxd4 {[%emt 0:00:14]} 17. Bxd4 {[%emt 0:00:14]} Qd7 {[%emt 0:00:08]} 18. Be3 {[%emt 0:01:03]} Bf7 {[%emt 0:01:13]} 19. Nc4 {[%emt 0:07:03]} Nc8 {[%emt 0:07:26]} 20. b6 {[%emt 0:08:33]} axb6 {[%emt 0:07:55]} 21. Bxb6 {[%emt 0:00:50]} Re8 {[%emt 0:00:17]} 22. a5 {[%emt 0:00:53]} Bh6 {[%emt 0:04:28]} 23. Be3 {[%emt 0:00:45]} Bxe3 {[%emt 0:01:22]} 24. Nxe3 {[%emt 0:00:04]} Nd6 {[%emt 0:05:14]} 25. Qb4 {[%emt 0:01:45]} Red8 {[%emt 0:01:48]} 26. Bf1 {[%emt 0:06:17]} Kg7 {[%emt 0:00:16]} 27. Rc2 {[%emt 0:01:22]} Qe6 {[%emt 0:07:43]} 28. Rb1 {[%emt 0:08:44]} Rac8 {[%emt 0:02:09]} 29. Rd2 {[%emt 0:01:21]} Rd7 {[%emt 0:00:02]} 30. h4 {[%emt 0:01:44]} Rcd8 {[%emt 0:00:49]} 31. Kh2 {[%emt 0:01:57]} Nc8 {[%emt 0:02:10]} 32. Rxd7 {[%emt 0:02:02]} Qxd7 {[%emt 0:00:01]} 33. Qxb7 {[%emt 0:00:52]} Qxb7 {[%emt 0:00:46]} 34. Rxb7 {[%emt 0:00:19]} Nd6 {[%emt 0:00:03]} 35. Rb4 {[%emt 0:03:07]} Ne6 {[%emt 0:00:02]} 36. a6 {[%emt 0:05:13]} Nc5 {[%emt 0:00:11]} 37. Nd2 {[%emt 0:00:17]} Ne8 {[%emt 0:01:19]} 38. Nd5 {[%emt 0:02:11]} Ra8 {[%emt 0:01:06]} 39. Rb6 {[%emt 0:00:57]} Bxd5 {[%emt 0:00:35]} 40. exd5 {[%emt 0:00:00]} Nc7 {[%emt 0:00:00]} 41. d6 {[%emt 0:04:58]} N7xa6 {[%emt 0:04:53]} 42. Bxa6 {[%emt 0:01:32]} Nxa6 {[%emt 0:00:12]} 43. Rb7+ {[%emt 0:01:08]} Kf8 {[%emt 0:06:10]} 44. Ne4 {[%emt 0:01:39]} f5 {[%emt 0:00:07]} 45. Rxh7 {[%emt 0:01:50]} 1-0

[Event "AUT Bundesliga 2022-23"]
[Site "Jenbach"]
[Date "2022.11.03"]
[Round "1.36"]
[White "Bacrot, Etienne"]
[Black "Saric, Ante"]
[Result "1-0"]
[ECO "B41"]
[WhiteElo "2646"]
[BlackElo "2510"]
[Annotator "ChessBase"]
[PlyCount "55"]
[EventDate "2022.11.03"]
[EventType "team-tourn"]
[EventCountry "AUT"]
[SourceTitle "playchess.com"]
[Source "ChessBase"]
[SourceQuality "1"]
[TimeControl "40/5400+30:1800+30"]

1. e4 {[%emt 0:00:04]} c5 {[%emt 0:00:14]} 2. Nf3 {[%emt 0:00:08]} e6 {[%emt 0:00:05]} 3. d4 {[%emt 0:00:07]} cxd4 {[%emt 0:00:04]} 4. Nxd4 {[%emt 0:00:04]} a6 {[%emt 0:00:05]} 5. h3 {[%emt 0:00:06]} Qc7 {[%emt 0:08:38]} 6. Bd3 {[%emt 0:09:24]} g6 {[%emt 0:09:03]} 7. c4 {[%emt 0:12:34]} Bg7 {[%emt 0:01:18]} 8. Ne2 {[%emt 0:01:21]} Nc6 {[%emt 0:06:24]} 9. Nbc3 {[%emt 0:01:08]} Nge7 {[%emt 0:01:25]} 10. O-O {[%emt 0:11:31]} Ne5 {[%emt 0:10:56]} 11. b3 {[%emt 0:06:53]} O-O {[%emt 0:19:33]} 12. Bg5 {[%emt 0:04:26]} d6 {[%emt 0:07:20]} 13. Rc1 {[%emt 0:00:33]} f5 {[%emt 0:01:45]} 14. exf5 {[%emt 0:02:07]} Nxf5 {[%emt 0:01:15]} 15. Bxf5 {[%emt 0:03:15]} gxf5 {[%emt 0:02:52]} 16. Nf4 {[%emt 0:00:05]} Nf7 {[%emt 0:02:53]} 17. Bh4 {[%emt 0:00:33]} d5 {[%emt 0:07:32]} 18. Nh5 {[%emt 0:11:37]} dxc4 {[%emt 0:00:46]} 19. Nxg7 {[%emt 0:02:02]} Kxg7 {[%emt 0:00:05]} 20. Re1 {[%emt 0:02:13]} b5 {[%emt 0:05:06]} 21. bxc4 {[%emt 0:02:20]} Qxc4 {[%emt 0:05:26]} 22. Re4 {[%emt 0:08:18]} fxe4 {[%emt 0:02:24]} 23. Qg4+ {[%emt 0:00:32]} Ng5 {[%emt 0:00:19]} 24. Qxg5+ {[%emt 0:02:52]} Kf7 {[%emt 0:01:39]} 25. Nxe4 {[%emt 0:01:24]} Qd5 {[%emt 0:00:42]} 26. Rc7+ {[%emt 0:01:46]} Bd7 {[%emt 0:00:04]} 27. Qe7+ {[%emt 0:00:06]} Kg6 {[%emt 0:00:49]} 28. Rxd7 {[%emt 0:00:07]} 1-0